bitfinex-derivatives/quotes_SOLF0:USTF0_20250413
["timestamp","ask_amount","ask_price","bid_price","bid_amount"]
[1744507709045,7.5127,133.14,133.09,42.46345325]
[1744507709238,4.69696297,133.12,133.1,0.05027984]
[1744507711245,28.28,133.12,133.1,0.05027984]
[1744507711749,35.7934,133.12,133.1,0.05027984]
[1744507717552,28.28,133.12,133.1,0.05027984]
[1744507718051,7.5139,133.11,133.1,0.05027984]
[1744507719051,28.28,133.12,133.1,0.05027984]
[1744507720350,7.34028609,133.11,133.04,9.4922]
[1744507720548,7.34028609,133.09,133.04,7.5176]
[1744507720849,28.3,133.08,133.04,7.5176]
[1744507721054,28.3,133.08,133.05,7.5171]
[1744507721556,28.35087521,133.08,133.06,7.5166]
[1744507723155,28.35087521,133.08,133.05,7.57173827]
[1744507724052,28.35087521,133.08,133.06,7.5167]
[1744507724355,28.35087521,133.08,133.05,0.05463827]
[1744507725955,7.34028609,133.06,133.05,0.05463827]
[1744507730258,35.6911613,133.08,133.05,0.05463827]
[1744507732454,0.05087521,133.08,133.05,0.05463827]
[1744507732756,7.34028609,133.13,133.05,7.39492436]
[1744507732955,7.34028609,133.13,133.07,7.5157]
[1744507733153,7.34028609,133.13,133.05,4.1627]
[1744507733660,7.34028609,133.13,133.07,7.5158]
[1744507733860,0.05102226,133.1,133.08,0.05417598]
[1744507734861,0.05102226,133.1,133.08,7.56967598]
[1744507736763,0.05102226,133.1,133.08,0.05417598]
[1744507737264,0.05102226,133.1,133.08,7.56977598]
[1744507739666,0.05102226,133.1,133.08,0.05417598]
[1744507740668,0.05102226,133.1,133.08,7.56977598]
[1744507742467,0.05102226,133.1,133.08,0.05417598]
[1744507743068,7.34028609,133.09,133.08,0.05417598]
[1744507743265,14.68057218,133.09,133.0,1.9821]
[1744507743465,7.34028609,133.07,133.0,9.5018]
[1744507743668,7.34028609,133.04,133.0,9.5018]
[1744507743874,35.64028609,133.04,133.0,9.5018]
[1744507744260,0.05663329,133.03,133.01,0.0549721]
[1744507744574,0.05663329,133.03,133.01,7.5744721]
[1744507744964,0.05663329,133.03,133.0,1.9821]
[1744507745172,40.4434279,133.0,132.98,28.3]
[1744507745668,40.4434279,133.0,132.99,7.5207]
[1744507746972,40.4434279,133.0,132.99,14.86098609]
[1744507750369,28.3,133.07,132.99,14.86028609]
[1744507750674,28.3,133.1,133.05,7.34028609]
[1744507750877,28.3,133.1,133.08,7.5155]
[1744507751077,28.3,133.16,133.09,7.34028609]
[1744507751373,28.3,133.16,133.11,7.5135]
[1744507751574,0.04735007,133.14,133.11,0.05481513]
[1744507751974,0.04735007,133.14,133.11,7.56831513]
[1744507752574,0.04735007,133.14,133.12,7.5133]
[1744507753575,0.04735007,133.14,133.11,7.56851513]
[1744507758675,0.04735007,133.14,133.11,0.05481513]
[1744507759878,35.64028609,133.13,133.11,0.05481513]
[1744507760279,28.3,133.13,133.11,0.05481513]
[1744507760669,28.3,133.13,133.11,7.56831513]
[1744507761680,0.04735007,133.14,133.12,7.5133]
[1744507762978,0.04735007,133.14,133.11,7.56851513]
[1744507763475,28.3,133.19,133.13,7.34028609]
[1744507763680,28.3,133.22,133.15,7.34028609]
[1744507764379,28.3,133.22,133.17,7.5104]
[1744507764577,0.05441711,133.21,133.18,0.0504754]
[1744507768482,0.05441711,133.21,133.19,7.5091]
[1744507768777,0.05441711,133.21,133.18,0.0504754]
[1744507770282,0.05441711,133.21,133.18,7.5601754]
[1744507775489,0.05441711,133.21,133.18,0.0504754]
[1744507775687,7.3947032,133.21,133.18,0.0504754]
[1744507776487,0.05441711,133.21,133.18,0.0504754]
[1744507777384,0.05441711,133.21,133.18,7.5600754]
[1744507777787,0.05441711,133.21,133.18,0.0504754]
[1744507777984,0.05441711,133.21,133.18,7.5601754]
[1744507781496,0.05441711,133.21,133.19,7.5092]
[1744507782694,0.05441711,133.21,133.18,0.0504754]
[1744507783097,0.05441711,133.21,133.19,7.509]
[1744507784393,0.05441711,133.21,133.2,7.5088]
[1744507786294,595.1,133.24,133.23,7.5071]
[1744507786500,28.28,133.25,133.19,4.1107]
[1744507786901,35.62028609,133.25,133.19,4.1107]
[1744507787399,35.62028609,133.25,133.2,7.5085]
[1744507787601,0.05163416,133.23,133.21,0.05091814]
[1744507788799,0.05163416,133.23,133.21,7.55911814]
[1744507791104,0.05163416,133.23,133.22,7.5077]
[1744507793804,28.26,133.29,133.25,7.5059]
[1744507794805,0.05529766,133.28,133.26,0.0479785]
[1744507797403,7.39558375,133.28,133.2,28.26]
[1744507797603,7.34028609,133.26,133.2,28.26]
[1744507797801,600.8106,133.31,133.2,35.60028609]
[1744507798003,7.34028609,133.33,133.25,7.34028609]
[1744507798501,7.34028609,133.33,133.28,7.5039]
[1744507798704,0.05661859,133.3,133.28,7.55290212]
[1744507798905,0.05661859,133.3,133.28,0.04900212]
[1744507799503,0.05661859,133.3,133.29,7.5037]
[1744507804812,0.05661859,133.3,133.28,0.04900212]
[1744507805207,7.39690468,133.3,133.28,0.04900212]
[1744507805511,7.39690468,133.3,133.2,393.58028609]
[1744507805811,7.34028609,133.28,133.2,399.73538609]
[1744507806010,7.504,133.29,133.25,7.5056]
[1744507806211,35.58028609,133.28,133.2,399.73538609]
[1744507806407,35.58028609,133.28,133.2,41.73538609]
[1744507806604,35.58028609,133.28,133.25,7.5056]
[1744507806802,35.58028609,133.28,133.23,0.05079066]
[1744507807008,28.29731604,133.28,133.23,0.05079066]
[1744507807209,28.29731604,133.28,133.26,7.5051]
[1744507807515,35.63760213,133.28,133.26,0.05549498]
[1744507807807,35.63760213,133.28,133.22,7.5074]
[1744507808016,35.58028609,133.28,133.2,34.3951]
[1744507808205,35.58028609,133.28,133.22,7.5073]
[1744507808616,7.34028609,133.26,133.21,7.5082]
[1744507808808,7.34028609,133.24,133.17,10.82783831]
[1744507809209,7.34028609,133.24,133.19,0.04845201]
[1744507809210,0.05239045,133.22,133.19,0.04845201]
[1744507809407,28.29239045,133.22,133.19,0.04845201]
[1744507809615,35.63267654,133.22,133.19,0.04845201]
[1744507811314,7.34028609,133.2,133.19,0.04845201]
[1744507811707,28.29239045,133.22,133.19,0.04845201]
[1744507812312,28.29239045,133.22,133.2,7.5086]
[1744507812719,0.05239045,133.22,133.21,7.5082]
[1744507812918,28.24,133.25,133.21,7.34028609]
[1744507813119,28.26,133.28,133.21,7.34028609]
[1744507813419,28.26,133.28,133.23,7.5068]
[1744507813618,35.60028609,133.28,133.21,7.34028609]
[1744507814219,0.04883883,133.26,133.23,0.04961609]
[1744507816122,0.04883883,133.26,133.24,7.5066]
[1744507817326,0.04883883,133.26,133.23,0.04961609]
[1744507818927,0.04883883,133.26,133.23,7.55661609]
[1744507820330,0.04883883,133.26,133.23,0.04961609]
[1744507820630,28.26,133.25,133.23,0.04961609]
[1744507826531,7.34028609,133.24,133.23,0.04961609]
[1744507826732,7.34028609,133.24,133.16,2.0268]
[1744507826931,7.34028609,133.22,133.16,2.0268]
[1744507827235,35.60028609,133.22,133.18,7.5095]
[1744507827436,28.26,133.22,133.16,2.0268]
[1744507827734,28.26,133.22,133.18,7.5094]
[1744507828036,0.0504981,133.2,133.18,7.56651531]
[1744507830434,0.0504981,133.2,133.18,0.05711531]
[1744507830934,0.0504981,133.2,133.19,7.5094]
[1744507833838,4.115,133.3,133.19,401.10028609]
[1744507834029,4.115,133.3,133.22,7.34028609]
[1744507834234,622.62,133.31,133.24,7.34028609]
[1744507834433,28.26,133.31,133.24,7.34028609]
[1744507834737,28.26,133.31,133.26,7.34028609]
[1744507834941,28.26,133.31,133.28,7.5042]
[1744507835142,0.05024235,133.3,133.27,0.04912594]
[1744507835439,0.05024235,133.3,133.28,7.31036487]
[1744507835630,0.05024235,133.3,133.29,7.31036487]
[1744507836132,7.39052844,133.3,133.27,0.04912594]
[1744507836540,0.05024235,133.3,133.28,7.31044288]
[1744507836740,0.05024235,133.3,133.29,7.31044288]
[1744507837942,35.58028609,133.36,133.29,7.31044288]
[1744507838142,7.34028609,133.34,133.3,7.31044288]
[1744507838343,7.34028609,133.34,133.26,7.34028609]
[1744507838540,7.34028609,133.34,133.27,7.23164716]
[1744507838738,7.34028609,133.34,133.28,7.23164716]
[1744507838939,7.34028609,133.34,133.29,7.23164716]
[1744507839143,0.05438698,133.32,133.3,0.05568623]
[1744507839341,28.29438698,133.32,133.3,0.05568623]
[1744507842847,28.29438698,133.32,133.3,7.55848623]
[1744507844449,28.29438698,133.32,133.31,7.22647197]
[1744507845050,28.29438698,133.32,133.3,0.05568623]
[1744507846349,28.29438698,133.32,133.3,7.55878623]
[1744507848554,0.05438698,133.32,133.31,14.72896957]
[1744507849148,5.971,133.43,133.34,7.34028609]
[1744507849459,28.24,133.42,133.35,7.21942217]
[1744507849655,28.24,133.42,133.37,7.4988]
[1744507849851,28.24,133.42,133.34,7.34028609]
[1744507850050,28.24,133.42,133.35,7.21092152]
[1744507850251,0.04926031,133.39,133.37,0.050369]
[1744507850454,0.04926031,133.39,133.38,7.21092152]
[1744507850855,0.04926031,133.39,133.37,0.050369]
[1744507851052,28.24,133.38,133.37,0.050369]
[1744507851355,28.24,133.38,133.37,7.549569]
[1744507851658,0.04926031,133.39,133.37,7.549569]
[1744507851856,28.28926031,133.39,133.37,7.549569]
[1744507852258,28.28926031,133.39,133.38,7.4987]
[1744507852558,28.28926031,133.39,133.37,0.050369]
[1744507854161,28.28926031,133.39,133.37,7.549269]
[1744507854354,28.28926031,133.39,133.37,0.050369]
[1744507854865,1.9814,133.43,133.38,7.18117685]
[1744507855056,28.22,133.5,133.41,7.34028609]
[1744507855361,28.22,133.5,133.42,7.1797047]
[1744507855556,7.34028609,133.49,133.41,7.34028609]
[1744507855752,7.34028609,133.49,133.42,14.66084199]
[1744507855952,28.22,133.5,133.41,7.34028609]
[1744507856156,0.03735906,133.47,133.44,0.0515865]
[1744507856354,0.03735906,133.47,133.46,7.4942]
[1744507856557,28.22,133.5,133.45,7.34028609]
[1744507856955,28.22,133.5,133.47,7.4933]
[1744507857153,28.22,133.5,133.45,7.34028609]
[1744507857662,594.06,133.52,133.46,0.05696252]
[1744507857860,28.22,133.51,133.46,2.14936252]
[1744507858257,106.05969744,133.58,133.5,7.34028609]
[1744507858457,7.34028609,133.58,133.5,7.34028609]
[1744507858656,7.34028609,133.58,133.53,0.04844669]
[1744507858955,34.1493,133.61,133.54,7.34028609]
[1744507859359,34.1493,133.61,133.56,7.53881364]
[1744507859555,34.1493,133.61,133.56,0.05031364]
[1744507860361,1.9419,133.61,133.57,7.34028609]
[1744507860559,137.52159744,133.65,133.57,7.34028609]
[1744507860858,7.34028609,133.62,133.56,29.52]
[1744507861064,7.34028609,133.6,133.52,2.0156]
[1744507861262,29.5,133.6,133.52,2.0156]
[1744507862058,11.66215592,133.59,133.53,7.4901]
[1744507862264,11.71326677,133.57,133.55,0.05654087]
[1744507862468,29.5,133.56,133.48,29.5]
[1744507862663,36.9888,133.56,133.48,29.5]
[1744507862964,29.5,133.56,133.49,11.66215592]
[1744507863162,29.5,133.56,133.55,7.4891]
[1744507863363,29.5,133.56,133.49,11.66215592]
[1744507863567,29.5,133.56,133.54,0.05517538]
[1744507863767,29.5,133.56,133.49,11.66215592]
[1744507864067,0.04917403,133.56,133.54,0.05267337]
[1744507864368,0.04917403,133.56,133.54,0.049426]
[1744507864867,0.04917403,133.56,133.55,7.4891]
[1744507865867,41.16215592,133.63,133.59,7.4865]
[1744507866167,29.5,133.63,133.55,11.66215592]
[1744507866565,2.111,133.64,133.57,11.66215592]
[1744507866766,11.66215592,133.72,133.61,11.66215592]
[1744507866966,15.87405592,133.72,133.67,7.482]
[1744507867267,2.111,133.72,133.65,11.66215592]
[1744507867463,2.111,133.72,133.67,11.66215592]
[1744507867664,2.111,133.72,133.66,29.48]
[1744507867665,241.31750387,133.8,133.7,11.66215592]
[1744507867861,113.53549744,133.79,133.71,29.48]
[1744507868064,113.53549744,133.79,133.74,7.478]
[1744507868266,106.05969744,133.79,133.71,29.48]
[1744507868462,106.05969744,133.79,133.7,29.48]
[1744507868769,11.66215592,133.79,133.7,41.14215592]
[1744507868970,11.66215592,133.81,133.73,0.05031011]
[1744507869166,11.66215592,133.81,133.75,7.4779]
[1744507869361,11.66215592,133.81,133.74,29.48]
[1744507869562,11.66215592,133.81,133.77,0.05163111]
[1744507869770,2.096,133.82,133.77,0.05163111]
[1744507870363,11.66215592,133.79,133.77,0.05163111]
[1744507870870,11.66215592,133.81,133.77,0.05163111]
[1744507871469,2.096,133.82,133.77,0.05163111]
[1744507871771,7.4762,133.8,133.77,0.05163111]
[1744507871972,2.096,133.82,133.77,0.05163111]
[1744507872171,13.74595592,133.84,133.77,29.53163111]
[1744507872467,106.05969744,133.85,133.78,11.66215592]
[1744507872667,106.05969744,133.85,133.78,13.75305592]
[1744507872873,106.05969744,133.85,133.79,29.48]
[1744507873068,106.05969744,133.85,133.8,0.05710122]
[1744507873273,106.05969744,133.85,133.81,29.46]
[1744507873474,11.66215592,133.92,133.82,11.66215592]
[1744507873770,11.66215592,133.9,133.82,2.0194]
[1744507873965,11.66215592,133.9,133.86,0.04909608]
[1744507874166,11.66215592,133.87,133.86,0.04909608]
[1744507874465,2.0336,133.93,133.86,0.04909608]
[1744507874865,13.69575592,133.93,133.86,0.04909608]
[1744507875065,2.0336,133.93,133.86,0.04909608]
[1744507875268,470.05969744,134.05,133.89,11.66215592]
[1744507875269,1.29988981,133.99,133.89,11.66215592]
[1744507875574,42.36215592,134.02,133.91,11.66215592]
[1744507875772,11.66215592,133.99,133.89,11.66215592]
[1744507876069,11.66215592,133.99,133.93,0.05150346]
[1744507876270,11.66215592,134.04,133.93,0.05150346]
[1744507876469,136.73969744,134.05,133.94,31.92]
[1744507876666,11.66215592,134.01,133.94,31.92]
[1744507876978,11.66215592,134.03,133.97,0.05224751]
[1744507876979,31.92,134.0,133.97,0.05224751]
[1744507877277,31.92,134.0,133.87,31.92]
[1744507877477,11.66215592,133.98,133.87,43.58215592]
[1744507877676,31.92,134.0,133.89,11.66215592]
[1744507877977,11.66215592,133.99,133.87,43.58215592]
[1744507878168,31.92,134.0,133.89,11.66215592]
[1744507878369,0.04789429,133.94,133.92,0.04761908]
[1744507878575,11.66215592,133.93,133.85,1.9379]
[1744507878772,11.66215592,133.91,133.85,1.9379]
[1744507878977,11.66215592,133.89,133.78,43.58215592]
[1744507879280,11.66215592,133.91,133.8,11.66215592]
[1744507879773,0.05552312,133.87,133.78,47.70525592]
[1744507879979,11.66215592,133.91,133.78,47.70525592]
[1744507880170,0.05748241,133.84,133.81,0.05126252]
[1744507880368,11.66215592,133.84,133.78,2.0258]
[1744507880573,0.05545555,133.84,133.81,0.05694135]
[1744507881578,43.63761147,133.84,133.81,0.05694135]
[1744507881782,43.63761147,133.84,133.74,31.92]
[1744507882077,7.4771,133.78,133.71,39.3804]
[1744507882382,7.4771,133.78,133.71,31.9]
[1744507882782,31.9,133.79,133.71,31.9]
[1744507882982,31.9,133.79,133.73,0.0560115]
[1744507883184,0.04928515,133.76,133.73,0.0560115]
[1744507883485,7.4789,133.75,133.73,0.0560115]
[1744507883676,11.66215592,133.75,133.73,0.0560115]
[1744507883881,0.04928515,133.76,133.73,0.0560115]
[1744507884184,2.1274,133.84,133.74,11.66215592]
[1744507884372,31.9,133.89,133.8,11.66215592]
[1744507884778,31.9,133.89,133.79,31.9]
[1744507884779,11.66215592,133.88,133.79,31.9]
[1744507884978,11.66215592,133.84,133.74,371.64235592]
[1744507885184,44.82215592,133.84,133.74,1.9802]
[1744507885384,7.52862686,133.8,133.78,0.05037201]
[1744507885785,0.05232686,133.8,133.78,0.05037201]
[1744507887084,33.16,133.79,133.7,20.87073493]
[1744507887383,7.4774,133.78,133.72,7.4803]
[1744507887784,33.16,133.79,133.7,20.87073493]
[1744507887986,33.16,133.79,133.72,18.89053493]
[1744507888286,0.04840528,133.77,133.74,0.05162942]
[1744507889490,7.52640528,133.77,133.74,0.05162942]
[1744507889986,0.04840528,133.77,133.74,0.05162942]
[1744507890589,7.52600528,133.77,133.74,0.05162942]
[1744507890790,0.04840528,133.77,133.74,0.05162942]
[1744507891586,7.4782,133.76,133.74,0.05162942]
[1744507892082,0.04840528,133.77,133.74,0.05162942]
[1744507892288,18.89053493,133.76,133.64,360.015]
[1744507892488,18.89053493,133.74,133.65,2.0929]
[1744507892689,7.4804,133.72,133.65,2.0929]
[1744507892987,54.09403493,133.75,133.65,2.0929]
[1744507893189,54.09403493,133.75,133.66,7.4836]
[1744507893586,0.05466208,133.71,133.69,0.04895264]
[1744507893790,7.4815,133.7,133.69,0.04895264]
[1744507894289,40.69556208,133.71,133.69,0.04895264]
[1744507894482,33.21466208,133.71,133.69,0.04895264]
[1744507894681,52.10519701,133.71,133.69,5.264e-05]
[1744507894991,52.10519701,133.71,133.58,412.02793493]
[1744507895189,18.89053493,133.69,133.58,359.9774]
[1744507895688,18.89053493,133.65,133.54,52.05053493]
[1744507895889,18.89053493,133.65,133.55,7.4895]
[1744507895890,33.16,133.64,133.55,7.4895]
[1744507896089,18.89053493,133.63,133.53,35.2157]
[1744507896394,7.4878,133.59,133.53,9.5463]
[1744507896688,7.4878,133.59,133.53,2.0557]
[1744507896880,7.4883,133.58,133.53,2.0557]
[1744507897082,0.05633988,133.57,133.55,0.05282287]
[1744507897492,33.18,133.56,133.55,0.05282287]
[1744507897882,33.18,133.56,133.5,358.0]
[1744507898289,7.49,133.55,133.5,358.0]
[1744507898488,18.89053493,133.55,133.45,2.0557]
[1744507898792,18.89053493,133.53,133.43,359.9458]
[1744507898991,33.18,133.52,133.44,18.89053493]
[1744507899197,0.0517538,133.49,133.47,0.05059038]
[1744507900092,0.0517538,133.49,133.47,7.54489038]
[1744507900294,0.0517538,133.49,133.47,0.05059038]
[1744507901588,0.0517538,133.49,133.47,8.78772869]
[1744507902792,7.4938,133.48,133.47,8.78772869]
[1744507902991,40.6938,133.48,133.47,8.78772869]
[1744507903193,0.0517538,133.49,133.47,8.78772869]
[1744507903796,0.0517538,133.49,133.47,0.05059038]
[1744507903994,7.5454538,133.49,133.43,7.4962]
[1744507904196,0.0517538,133.49,133.39,22.98873493]
[1744507904392,18.89053493,133.49,133.39,22.98873493]
[1744507904696,18.89053493,133.47,133.37,18.89053493]
[1744507904997,18.89053493,133.45,133.36,7.5005]
[1744507905196,18.94327354,133.43,133.35,1.9383]
[1744507905402,33.2,133.42,133.35,1.9383]
[1744507905694,18.89053493,133.41,133.31,18.89053493]
[1744507906092,33.2,133.42,133.31,18.89053493]
[1744507906290,18.89053493,133.39,133.3,1.9383]
[1744507906590,7.5006,133.36,133.35,0.04910486]
[1744507906993,7.5038,133.31,133.25,7.5066]
[1744507907195,33.22,133.31,133.23,22.82053493]
[1744507907396,52.11053493,133.31,133.21,52.11053493]
[1744507907596,52.11053493,133.31,133.21,18.89053493]
[1744507908103,52.11053493,133.31,133.25,0.0522995]
[1744507908104,0.05642334,133.27,133.25,0.0522995]
[1744507908298,33.22,133.26,133.25,0.0522995]
[1744507911705,0.05642334,133.27,133.25,0.0522995]
[1744507912202,0.05642334,133.27,133.18,2.0706]
[1744507912404,52.15053493,133.3,133.19,18.89053493]
[1744507912405,33.26,133.3,133.19,18.89053493]
[1744507912595,33.26,133.3,133.21,18.89053493]
[1744507913002,33.26,133.3,133.21,7.5089]
[1744507913302,0.05119772,133.27,133.24,0.04888727]
[1744507914201,0.05119772,133.27,133.24,7.55578727]
[1744507914407,593.56,133.34,133.25,52.15053493]
[1744507914608,593.56,133.34,133.27,18.89053493]
[1744507915011,18.89053493,133.33,133.25,2.1063]
[1744507915209,18.89053493,133.33,133.22,33.84]
[1744507915509,0.05638046,133.29,133.26,0.0531324]
[1744507915905,0.05638046,133.29,133.26,0.04995027]
[1744507917007,593.56,133.34,133.27,18.89053493]
[1744507917311,33.84,133.38,133.27,52.73053493]
[1744507917511,33.84,133.38,133.27,410.73053493]
[1744507917710,33.84,133.38,133.3,18.89053493]
[1744507917912,33.84,133.38,133.33,7.5018]
[1744507918205,0.05280812,133.37,133.34,0.05530605]
[1744507918408,18.94334305,133.37,133.34,0.05530605]
[1744507918609,18.89053493,133.37,133.27,410.73053493]
[1744507918809,7.5018,133.34,133.27,410.73053493]
[1744507919111,0.04788548,133.33,133.31,0.0513019]
[1744507919502,7.55048548,133.33,133.31,0.0513019]
[1744507920307,7.5028,133.32,133.31,0.0513019]
[1744507920609,612.97053493,133.32,133.16,33.84]
[1744507920815,7.5071,133.25,133.2,7.5092]
[1744507921108,7.5071,133.25,133.16,33.84]
[1744507921109,18.89053493,133.24,133.15,362.053]
[1744507921303,33.84,133.23,133.16,7.5113]
[1744507921509,33.84,133.23,133.15,362.053]
[1744507921712,0.04753718,133.21,133.18,0.05434419]
[1744507922914,18.89053493,133.2,133.18,0.05434419]
[1744507923116,18.89053493,133.2,133.1,1.9954]
[1744507923518,18.89053493,133.2,133.1,20.88593493]
[1744507923818,18.89053493,133.16,133.04,18.89053493]
[1744507924012,18.89053493,133.14,133.05,1.9954]
[1744507924213,18.89053493,133.12,133.05,1.9954]
[1744507924422,0.05080559,133.11,133.08,0.05414251]
[1744507925118,18.89053493,133.1,132.98,33.86]
[1744507925319,0.05080559,133.11,132.98,33.86]
[1744507925320,18.89053493,133.08,133.0,7.5207]
[1744507925516,18.89053493,133.08,132.99,2.1044]
[1744507925709,7.519,133.04,132.99,2.1044]
[1744507925909,33.86,133.06,132.99,2.1044]
[1744507926315,0.05482919,133.04,133.01,0.0475665]
[1744507926618,18.94536412,133.04,132.93,3.932]
[1744507926818,18.89053493,133.04,132.93,6.0364]
[1744507927014,7.5207,133.01,132.95,7.5237]
[1744507927213,18.89053493,133.0,132.93,4.1035]
[1744507927614,18.89053493,133.0,132.93,2.1044]
[1744507927814,18.94669131,132.98,132.95,0.05089354]
[1744507928014,33.88,132.97,132.87,22.99403493]
[1744507928525,33.88,132.97,132.89,18.89053493]
[1744507929023,33.88,133.0,132.93,18.89053493]
[1744507929221,33.88,133.03,132.93,18.89053493]
[1744507929819,33.88,133.03,132.96,7.5227]
[1744507930020,33.88,133.03,132.93,18.89053493]
[1744507930221,2.1429,133.05,132.97,18.89053493]
[1744507930524,33.88,133.05,132.98,2.0277]
[1744507930717,0.05118758,133.02,133.0,0.0552221]
[1744507931620,0.05118758,133.02,133.0,7.5761221]
[1744507931820,0.05118758,133.02,133.0,0.0552221]
[1744507932116,7.523,132.97,132.91,7.5259]
[1744507932320,33.88,132.97,132.91,7.5259]
[1744507932517,33.88,132.97,132.88,2.1386]
[1744507932518,52.77053493,132.97,132.88,2.1386]
[1744507932723,18.89053493,132.95,132.88,2.1386]
[1744507933022,33.88,132.97,132.88,2.1386]
[1744507933223,0.05711001,132.94,132.88,2.1386]
[1744507933922,0.05711001,132.94,132.89,7.5269]
[1744507934119,0.05711001,132.94,132.88,2.1386]
[1744507934325,0.05711001,132.94,132.89,18.89053493]
[1744507935026,0.05711001,132.94,132.88,2.1386]
[1744507935320,0.05711001,132.94,132.91,7.5254]
[1744507935625,0.05711001,132.94,132.88,2.1386]
[1744507935821,0.05711001,132.94,132.89,18.89053493]
[1744507936021,594.96,132.99,132.91,18.89053493]
[1744507936221,33.92,133.0,132.91,18.89053493]
[1744507936528,18.89053493,133.04,132.93,18.89053493]
[1744507936729,18.89053493,133.04,132.91,18.89053493]
[1744507936730,2.0797,133.05,132.95,18.89053493]
[1744507936928,2.0797,133.05,132.97,18.89053493]
[1744507937129,0.05438303,133.01,132.98,35.25273838]
[1744507937425,35.2,133.08,132.99,18.89053493]
[1744507937726,42.7165,133.08,133.02,7.5193]
[1744507937928,35.2,133.08,133.01,18.89053493]
[1744507938118,597.4397,133.13,133.07,7.5165]
[1744507938119,35.2,133.12,133.07,7.5165]
[1744507938522,7.5153,133.1,133.08,0.04783667]
[1744507938726,0.05115195,133.11,133.08,0.04783667]
[1744507939027,0.05115195,133.11,133.08,7.56413667]
[1744507939226,0.05115195,133.11,133.08,0.04783667]
[1744507940131,7.5158,133.09,133.08,0.04783667]
[1744507940333,0.05115195,133.11,133.08,0.04783667]
[1744507940631,0.05115195,133.11,133.08,7.56413667]
[1744507940822,0.05115195,133.11,133.08,0.04783667]
[1744507941328,0.05115195,133.11,133.1,7.5152]
[1744507941525,0.05115195,133.11,133.08,0.04783667]
[1744507941725,0.05115195,133.11,133.09,7.5158]
[1744507942026,0.05115195,133.11,133.08,0.04783667]
[1744507942731,54.14168688,133.11,133.08,0.04783667]
[1744507943028,18.89053493,133.09,132.98,39.1994]
[1744507943226,18.89053493,133.07,132.98,39.2191]
[1744507943524,18.89053493,133.05,132.98,4.0191]
[1744507943730,54.09053493,133.07,132.98,4.0191]
[1744507944027,61.60793493,133.07,133.01,7.5198]
[1744507944330,0.05647083,133.04,133.01,0.05316177]
[1744507944526,0.05647083,133.04,133.02,7.5196]
[1744507944730,0.05647083,133.04,133.01,0.05316177]
[1744507946423,35.2,133.1,133.01,18.9436967]
[1744507946630,35.2,133.1,133.03,18.89053493]
[1744507946931,595.26,133.13,133.03,54.09053493]
[1744507947131,35.2,133.12,133.03,54.09053493]
[1744507947325,35.2,133.12,133.05,18.89053493]
[1744507947734,0.05309801,133.1,133.08,7.516]
[1744507948031,0.05309801,133.1,133.07,0.05578805]
[1744507949431,0.05309801,133.1,133.07,7.57248805]
[1744507950133,7.56839801,133.1,133.07,0.05578805]
[1744507950634,0.05309801,133.1,133.07,0.05578805]
[1744507951233,18.94363294,133.1,133.07,0.05578805]
[1744507951432,0.05309801,133.1,133.07,0.05578805]
[1744507952334,42.7117,133.17,133.07,18.94632298]
[1744507952537,35.2,133.17,133.11,18.89053493]
[1744507952930,35.2,133.17,133.07,18.89053493]
[1744507953234,18.89053493,133.14,133.03,376.89053493]
[1744507953433,7.5151,133.11,133.04,7.12008466]
[1744507953634,7.5151,133.11,133.05,7.12008466]
[1744507953934,7.56708367,133.09,133.07,0.05600972]
[1744507954332,0.05128367,133.09,133.07,0.05600972]
[1744507955035,35.2,133.08,133.0,2.1012]
[1744507955234,35.2,133.08,133.03,7.5191]
[1744507955436,35.2,133.08,133.0,20.99173493]
[1744507955637,35.2,133.08,133.01,7.13496066]
[1744507955832,35.2,133.08,133.02,7.13496066]
[1744507956135,0.05469759,133.06,133.04,0.0565241]
[1744507956329,0.05469759,133.06,133.04,7.5746241]
[1744507956732,0.05469759,133.06,133.04,0.0565241]
[1744507956935,2.0347,133.14,133.04,0.0565241]
[1744507956936,35.2,133.14,133.05,7.13443781]
[1744507957134,35.2,133.17,133.07,18.89053493]
[1744507957330,7.5129,133.14,133.09,18.89053493]
[1744507957638,35.2,133.13,133.04,35.2]
[1744507957939,18.89053493,133.1,132.99,35.2]
[1744507958132,18.89053493,133.08,133.0,7.13817907]
[1744507958437,7.5185,133.05,133.01,7.5201]